Workbook

Sheet Dashboard
A1: *Considers Investments/Events from beginning of each year
A2: *Considers Investments from your next year age.
A3: *P.Y - Previous Year
A4: *C.Y - Current Year
B7: YEAR | C7: AGE | D7: P.Y SAVINGS | E7: C.Y SAVINGS | F7: EVENTS | G7: EVENTS DESCRIPTION | H7: NET INVESTMENT | I7: ROI | J7: TOTAL
B9: =YEAR(TODAY()) -> 2024 | C9: =userAge+1 -> 25 | D9: =ROUND(userCurrentSavings-userCurrentLiabilities, 0) -> 50000 | E9: =userAnnualSavings -> 360000 | F9: =-SUMIFS('Input-Events'!F$4:F$106, 'Input-Events'!E$4:E$106, $C9) -> 0 | G9: =_xlfn.TEXTJOIN(", ", TRUE, IF('Input-Events'!E$4:E$106=$C9, 'Input-Events'!D$4:D$106, "")) ->  | H9: =$D9+$E9+$F9 -> 410000 | I9: =ROUND(IF($C9>=userRetirementAge, IF($H9>0, $H9*annualEffectivePostRetirementROI, 0), IF($H9>0, $H9*annualEffectiveROI, 0)), 0) -> 16400 | J9: =ROUND(H9+I9, 0) -> 426400
B10: =B9+1 -> 2025 | C10: =C9+1 -> 26 | D10: =ROUND(J9, 0) -> 426400 | E10: =ROUND(IF($C10>userRetirementAge, IF($D10>0,-FV(annualChangeInSWP, $C10-userRetirementAge-1, 0, -annualAmountSWP, 1), 0), E9+E9*(annualIncreaseInSavings)), 0) -> 378000 | F10: =-SUMIFS('Input-Events'!F$4:F$106, 'Input-Events'!E$4:E$106, $C10) -> -50000 | G10: =_xlfn.TEXTJOIN(", ", TRUE, IF('Input-Events'!E$4:E$106=$C10, 'Input-Events'!D$4:D$106, "")) -> Mobile | H10: =$D10+$E10+$F10 -> 754400 | I10: 30176 | J10: 784576
B11: 2026 | C11: 27 | D11: 784576 | E11: 396900 | F11: =-SUMIFS('Input-Events'!F$4:F$106, 'Input-Events'!E$4:E$106, $C11) -> 0 | G11: =_xlfn.TEXTJOIN(", ", TRUE, IF('Input-Events'!E$4:E$106=$C11, 'Input-Events'!D$4:D$106, "")) ->  | H11: 1181476 | I11: 47259 | J11: 1228735
B12: 2027 | C12: 28 | D12: 1228735 | E12: 416745 | F12: =-SUMIFS('Input-Events'!F$4:F$106, 'Input-Events'!E$4:E$106, $C12) -> -500000 | G12: =_xlfn.TEXTJOIN(", ", TRUE, IF('Input-Events'!E$4:E$106=$C12, 'Input-Events'!D$4:D$106, "")) -> Marriage | H12: 1145480 | I12: 45819 | J12: 1191299
B13: 2028 | C13: 29 | D13: 1191299 | E13: 437582 | F13: =-SUMIFS('Input-Events'!F$4:F$106, 'Input-Events'!E$4:E$106, $C13) -> 0 | G13: =_xlfn.TEXTJOIN(", ", TRUE, IF('Input-Events'!E$4:E$106=$C13, 'Input-Events'!D$4:D$106, "")) ->  | H13: 1628881 | I13: 65155 | J13: 1694036
B14: 2029 | C14: 30 | D14: 1694036 | E14: 459461 | F14: =-SUMIFS('Input-Events'!F$4:F$106, 'Input-Events'!E$4:E$106, $C14) -> -1000000 | G14: =_xlfn.TEXTJOIN(", ", TRUE, IF('Input-Events'!E$4:E$106=$C14, 'Input-Events'!D$4:D$106, "")) -> Car | H14: 1153497 | I14: 46140 | J14: 1199637
B15: 2030 | C15: 31 | D15: 1199637 | E15: 482434 | F15: =-SUMIFS('Input-Events'!F$4:F$106, 'Input-Events'!E$4:E$106, $C15) -> 0 | G15: =_xlfn.TEXTJOIN(", ", TRUE, IF('Input-Events'!E$4:E$106=$C15, 'Input-Events'!D$4:D$106, "")) ->  | H15: 1682071 | I15: 67283 | J15: 1749354
B16: 2031 | C16: 32 | D16: 1749354 | E16: 506556 | F16: =-SUMIFS('Input-Events'!F$4:F$106, 'Input-Events'!E$4:E$106, $C16) -> 0 | G16: =_xlfn.TEXTJOIN(", ", TRUE, IF('Input-Events'!E$4:E$106=$C16, 'Input-Events'!D$4:D$106, "")) ->  | H16: 2255910 | I16: 90236 | J16: 2346146
B17: 2032 | C17: 33 | D17: 2346146 | E17: 531884 | F17: =-SUMIFS('Input-Events'!F$4:F$106, 'Input-Events'!E$4:E$106, $C17) -> 0 | G17: =_xlfn.TEXTJOIN(", ", TRUE, IF('Input-Events'!E$4:E$106=$C17, 'Input-Events'!D$4:D$106, "")) ->  | H17: 2878030 | I17: 115121 | J17: 2993151
B18: 2033 | C18: 34 | D18: 2993151 | E18: 558478 | F18: =-SUMIFS('Input-Events'!F$4:F$106, 'Input-Events'!E$4:E$106, $C18) -> 0 | G18: =_xlfn.TEXTJOIN(", ", TRUE, IF('Input-Events'!E$4:E$106=$C18, 'Input-Events'!D$4:D$106, "")) ->  | H18: 3551629 | I18: 142065 | J18: 3693694
B19: 2034 | C19: 35 | D19: 3693694 | E19: 586402 | F19: =-SUMIFS('Input-Events'!F$4:F$106, 'Input-Events'!E$4:E$106, $C19) -> 300000 | G19: =_xlfn.TEXTJOIN(", ", TRUE, IF('Input-Events'!E$4:E$106=$C19, 'Input-Events'!D$4:D$106, "")) -> PPF Maturity, Insurance Maturity | H19: 4580096 | I19: 183204 | J19: 4763300
B20: 2035 | C20: 36 | D20: 4763300 | E20: 615722 | F20: =-SUMIFS('Input-Events'!F$4:F$106, 'Input-Events'!E$4:E$106, $C20) -> 0 | G20: =_xlfn.TEXTJOIN(", ", TRUE, IF('Input-Events'!E$4:E$106=$C20, 'Input-Events'!D$4:D$106, "")) ->  | H20: 5379022 | I20: 215161 | J20: 5594183
B21: 2036 | C21: 37 | D21: 5594183 | E21: 646508 | F21: =-SUMIFS('Input-Events'!F$4:F$106, 'Input-Events'!E$4:E$106, $C21) -> 0 | G21: =_xlfn.TEXTJOIN(", ", TRUE, IF('Input-Events'!E$4:E$106=$C21, 'Input-Events'!D$4:D$106, "")) ->  | H21: 6240691 | I21: 249628 | J21: 6490319
B22: 2037 | C22: 38 | D22: 6490319 | E22: 678833 | F22: =-SUMIFS('Input-Events'!F$4:F$106, 'Input-Events'!E$4:E$106, $C22) -> 0 | G22: =_xlfn.TEXTJOIN(", ", TRUE, IF('Input-Events'!E$4:E$106=$C22, 'Input-Events'!D$4:D$106, "")) ->  | H22: 7169152 | I22: 286766 | J22: 7455918
B23: 2038 | C23: 39 | D23: 7455918 | E23: 712775 | F23: =-SUMIFS('Input-Events'!F$4:F$106, 'Input-Events'!E$4:E$106, $C23) -> 0 | G23: =_xlfn.TEXTJOIN(", ", TRUE, IF('Input-Events'!E$4:E$106=$C23, 'Input-Events'!D$4:D$106, "")) ->  | H23: 8168693 | I23: 326748 | J23: 8495441
B24: 2039 | C24: 40 | D24: 8495441 | E24: 748414 | F24: =-SUMIFS('Input-Events'!F$4:F$106, 'Input-Events'!E$4:E$106, $C24) -> -5000000 | G24: =_xlfn.TEXTJOIN(", ", TRUE, IF('Input-Events'!E$4:E$106=$C24, 'Input-Events'!D$4:D$106, "")) -> Home | H24: 4243855 | I24: 169754 | J24: 4413609
B25: 2040 | C25: 41 | D25: 4413609 | E25: 785835 | F25: =-SUMIFS('Input-Events'!F$4:F$106, 'Input-Events'!E$4:E$106, $C25) -> 0 | G25: =_xlfn.TEXTJOIN(", ", TRUE, IF('Input-Events'!E$4:E$106=$C25, 'Input-Events'!D$4:D$106, "")) ->  | H25: 5199444 | I25: 207978 | J25: 5407422
B26: 2041 | C26: 42 | D26: 5407422 | E26: 825127 | F26: =-SUMIFS('Input-Events'!F$4:F$106, 'Input-Events'!E$4:E$106, $C26) -> 0 | G26: =_xlfn.TEXTJOIN(", ", TRUE, IF('Input-Events'!E$4:E$106=$C26, 'Input-Events'!D$4:D$106, "")) ->  | H26: 6232549 | I26: 249302 | J26: 6481851
B27: 2042 | C27: 43 | D27: 6481851 | E27: 866383 | F27: =-SUMIFS('Input-Events'!F$4:F$106, 'Input-Events'!E$4:E$106, $C27) -> 0 | G27: =_xlfn.TEXTJOIN(", ", TRUE, IF('Input-Events'!E$4:E$106=$C27, 'Input-Events'!D$4:D$106, "")) ->  | H27: 7348234 | I27: 293929 | J27: 7642163
B28: 2043 | C28: 44 | D28: 7642163 | E28: 909702 | F28: =-SUMIFS('Input-Events'!F$4:F$106, 'Input-Events'!E$4:E$106, $C28) -> 0 | G28: =_xlfn.TEXTJOIN(", ", TRUE, IF('Input-Events'!E$4:E$106=$C28, 'Input-Events'!D$4:D$106, "")) ->  | H28: 8551865 | I28: 342075 | J28: 8893940
B29: 2044 | C29: 45 | D29: 8893940 | E29: 955187 | F29: =-SUMIFS('Input-Events'!F$4:F$106, 'Input-Events'!E$4:E$106, $C29) -> 0 | G29: =_xlfn.TEXTJOIN(", ", TRUE, IF('Input-Events'!E$4:E$106=$C29, 'Input-Events'!D$4:D$106, "")) ->  | H29: 9849127 | I29: 393965 | J29: 10243092
B30: 2045 | C30: 46 | D30: 10243092 | E30: 1002946 | F30: =-SUMIFS('Input-Events'!F$4:F$106, 'Input-Events'!E$4:E$106, $C30) -> 0 | G30: =_xlfn.TEXTJOIN(", ", TRUE, IF('Input-Events'!E$4:E$106=$C30, 'Input-Events'!D$4:D$106, "")) ->  | H30: 11246038 | I30: 449842 | J30: 11695880
B31: 2046 | C31: 47 | D31: 11695880 | E31: 1053093 | F31: =-SUMIFS('Input-Events'!F$4:F$106, 'Input-Events'!E$4:E$106, $C31) -> 0 | G31: =_xlfn.TEXTJOIN(", ", TRUE, IF('Input-Events'!E$4:E$106=$C31, 'Input-Events'!D$4:D$106, "")) ->  | H31: 12748973 | I31: 509959 | J31: 13258932
B32: 2047 | C32: 48 | D32: 13258932 | E32: 1105748 | F32: =-SUMIFS('Input-Events'!F$4:F$106, 'Input-Events'!E$4:E$106, $C32) -> 0 | G32: =_xlfn.TEXTJOIN(", ", TRUE, IF('Input-Events'!E$4:E$106=$C32, 'Input-Events'!D$4:D$106, "")) ->  | H32: 14364680 | I32: 574587 | J32: 14939267
B33: 2048 | C33: 49 | D33: 14939267 | E33: 1161035 | F33: =-SUMIFS('Input-Events'!F$4:F$106, 'Input-Events'!E$4:E$106, $C33) -> 0 | G33: =_xlfn.TEXTJOIN(", ", TRUE, IF('Input-Events'!E$4:E$106=$C33, 'Input-Events'!D$4:D$106, "")) ->  | H33: 16100302 | I33: 644012 | J33: 16744314
B34: 2049 | C34: 50 | D34: 16744314 | E34: 1219087 | F34: =-SUMIFS('Input-Events'!F$4:F$106, 'Input-Events'!E$4:E$106, $C34) -> 0 | G34: =_xlfn.TEXTJOIN(", ", TRUE, IF('Input-Events'!E$4:E$106=$C34, 'Input-Events'!D$4:D$106, "")) ->  | H34: 17963401 | I34: 718536 | J34: 18681937
B35: 2050 | C35: 51 | D35: 18681937 | E35: 1280041 | F35: =-SUMIFS('Input-Events'!F$4:F$106, 'Input-Events'!E$4:E$106, $C35) -> 0 | G35: =_xlfn.TEXTJOIN(", ", TRUE, IF('Input-Events'!E$4:E$106=$C35, 'Input-Events'!D$4:D$106, "")) ->  | H35: 19961978 | I35: 798479 | J35: 20760457
B36: 2051 | C36: 52 | D36: 20760457 | E36: 1344043 | F36: =-SUMIFS('Input-Events'!F$4:F$106, 'Input-Events'!E$4:E$106, $C36) -> 0 | G36: =_xlfn.TEXTJOIN(", ", TRUE, IF('Input-Events'!E$4:E$106=$C36, 'Input-Events'!D$4:D$106, "")) ->  | H36: 22104500 | I36: 884180 | J36: 22988680
B37: 2052 | C37: 53 | D37: 22988680 | E37: 1411245 | F37: =-SUMIFS('Input-Events'!F$4:F$106, 'Input-Events'!E$4:E$106, $C37) -> 0 | G37: =_xlfn.TEXTJOIN(", ", TRUE, IF('Input-Events'!E$4:E$106=$C37, 'Input-Events'!D$4:D$106, "")) ->  | H37: 24399925 | I37: 975997 | J37: 25375922
B38: 2053 | C38: 54 | D38: 25375922 | E38: 1481807 | F38: =-SUMIFS('Input-Events'!F$4:F$106, 'Input-Events'!E$4:E$106, $C38) -> 0 | G38: =_xlfn.TEXTJOIN(", ", TRUE, IF('Input-Events'!E$4:E$106=$C38, 'Input-Events'!D$4:D$106, "")) ->  | H38: 26857729 | I38: 1074309 | J38: 27932038
B39: 2054 | C39: 55 | D39: 27932038 | E39: 1555897 | F39: =-SUMIFS('Input-Events'!F$4:F$106, 'Input-Events'!E$4:E$106, $C39) -> 0 | G39: =_xlfn.TEXTJOIN(", ", TRUE, IF('Input-Events'!E$4:E$106=$C39, 'Input-Events'!D$4:D$106, "")) ->  | H39: 29487935 | I39: 1179517 | J39: 30667452
B40: 2055 | C40: 56 | D40: 30667452 | E40: 1633692 | F40: =-SUMIFS('Input-Events'!F$4:F$106, 'Input-Events'!E$4:E$106, $C40) -> 0 | G40: =_xlfn.TEXTJOIN(", ", TRUE, IF('Input-Events'!E$4:E$106=$C40, 'Input-Events'!D$4:D$106, "")) ->  | H40: 32301144 | I40: 1292046 | J40: 33593190
B41: 2056 | C41: 57 | D41: 33593190 | E41: 1715377 | F41: =-SUMIFS('Input-Events'!F$4:F$106, 'Input-Events'!E$4:E$106, $C41) -> 0 | G41: =_xlfn.TEXTJOIN(", ", TRUE, IF('Input-Events'!E$4:E$106=$C41, 'Input-Events'!D$4:D$106, "")) ->  | H41: 35308567 | I41: =ROUND(IF($C41>=userRetirementAge, IF($H41>0, $H41*annualEffectivePostRetirementROI, 0), IF($H41>0, $H41*annualEffectiveROI, 0)), 0) -> 1412343 | J41: =ROUND(H41+I41, 0) -> 36720910
B42: =B41+1 -> 2057 | C42: =C41+1 -> 58 | D42: =ROUND(J41, 0) -> 36720910 | E42: =ROUND(IF($C42>userRetirementAge, IF($D42>0,-FV(annualChangeInSWP, $C42-userRetirementAge-1, 0, -annualAmountSWP, 1), 0), E41+E41*(annualIncreaseInSavings)), 0) -> 1801146 | F42: =-SUMIFS('Input-Events'!F$4:F$106, 'Input-Events'!E$4:E$106, $C42) -> 0 | G42: =_xlfn.TEXTJOIN(", ", TRUE, IF('Input-Events'!E$4:E$106=$C42, 'Input-Events'!D$4:D$106, "")) ->  | H42: 38522056 | I42: 1540882 | J42: 40062938
B43: 2058 | C43: 59 | D43: 40062938 | E43: 1891203 | F43: =-SUMIFS('Input-Events'!F$4:F$106, 'Input-Events'!E$4:E$106, $C43) -> 0 | G43: =_xlfn.TEXTJOIN(", ", TRUE, IF('Input-Events'!E$4:E$106=$C43, 'Input-Events'!D$4:D$106, "")) ->  | H43: 41954141 | I43: 1678166 | J43: 43632307
B44: 2059 | C44: 60 | D44: 43632307 | E44: 1985763 | F44: =-SUMIFS('Input-Events'!F$4:F$106, 'Input-Events'!E$4:E$106, $C44) -> 500000 | G44: =_xlfn.TEXTJOIN(", ", TRUE, IF('Input-Events'!E$4:E$106=$C44, 'Input-Events'!D$4:D$106, "")) -> International Trip, Retirement Corpus, Retirement | H44: 46118070 | I44: 922361 | J44: 47040431
B45: 2060 | C45: 61 | D45: 47040431 | E45: -1200000 | F45: =-SUMIFS('Input-Events'!F$4:F$106, 'Input-Events'!E$4:E$106, $C45) -> 0 | G45: =_xlfn.TEXTJOIN(", ", TRUE, IF('Input-Events'!E$4:E$106=$C45, 'Input-Events'!D$4:D$106, "")) ->  | H45: 45840431 | I45: 916809 | J45: 46757240
B46: 2061 | C46: 62 | D46: 46757240 | E46: -1260000 | F46: =-SUMIFS('Input-Events'!F$4:F$106, 'Input-Events'!E$4:E$106, $C46) -> 0 | G46: =_xlfn.TEXTJOIN(", ", TRUE, IF('Input-Events'!E$4:E$106=$C46, 'Input-Events'!D$4:D$106, "")) ->  | H46: 45497240 | I46: 909945 | J46: 46407185
B47: 2062 | C47: 63 | D47: 46407185 | E47: -1323000 | F47: =-SUMIFS('Input-Events'!F$4:F$106, 'Input-Events'!E$4:E$106, $C47) -> 0 | G47: =_xlfn.TEXTJOIN(", ", TRUE, IF('Input-Events'!E$4:E$106=$C47, 'Input-Events'!D$4:D$106, "")) ->  | H47: 45084185 | I47: 901684 | J47: 45985869
B48: 2063 | C48: 64 | D48: 45985869 | E48: -1389150 | F48: =-SUMIFS('Input-Events'!F$4:F$106, 'Input-Events'!E$4:E$106, $C48) -> 0 | G48: =_xlfn.TEXTJOIN(", ", TRUE, IF('Input-Events'!E$4:E$106=$C48, 'Input-Events'!D$4:D$106, "")) ->  | H48: 44596719 | I48: 891934 | J48: 45488653
B49: 2064 | C49: 65 | D49: 45488653 | E49: -1458608 | F49: =-SUMIFS('Input-Events'!F$4:F$106, 'Input-Events'!E$4:E$106, $C49) -> 0 | G49: =_xlfn.TEXTJOIN(", ", TRUE, IF('Input-Events'!E$4:E$106=$C49, 'Input-Events'!D$4:D$106, "")) ->  | H49: 44030045 | I49: 880601 | J49: 44910646
B50: 2065 | C50: 66 | D50: 44910646 | E50: -1531538 | F50: =-SUMIFS('Input-Events'!F$4:F$106, 'Input-Events'!E$4:E$106, $C50) -> 0 | G50: =_xlfn.TEXTJOIN(", ", TRUE, IF('Input-Events'!E$4:E$106=$C50, 'Input-Events'!D$4:D$106, "")) ->  | H50: 43379108 | I50: 867582 | J50: 44246690
B51: 2066 | C51: 67 | D51: 44246690 | E51: -1608115 | F51: =-SUMIFS('Input-Events'!F$4:F$106, 'Input-Events'!E$4:E$106, $C51) -> 0 | G51: =_xlfn.TEXTJOIN(", ", TRUE, IF('Input-Events'!E$4:E$106=$C51, 'Input-Events'!D$4:D$106, "")) ->  | H51: 42638575 | I51: 852772 | J51: 43491347
B52: 2067 | C52: 68 | D52: 43491347 | E52: -1688521 | F52: =-SUMIFS('Input-Events'!F$4:F$106, 'Input-Events'!E$4:E$106, $C52) -> 0 | G52: =_xlfn.TEXTJOIN(", ", TRUE, IF('Input-Events'!E$4:E$106=$C52, 'Input-Events'!D$4:D$106, "")) ->  | H52: 41802826 | I52: 836057 | J52: 42638883
B53: 2068 | C53: 69 | D53: 42638883 | E53: -1772947 | F53: =-SUMIFS('Input-Events'!F$4:F$106, 'Input-Events'!E$4:E$106, $C53) -> 0 | G53: =_xlfn.TEXTJOIN(", ", TRUE, IF('Input-Events'!E$4:E$106=$C53, 'Input-Events'!D$4:D$106, "")) ->  | H53: 40865936 | I53: 817319 | J53: 41683255
B54: 2069 | C54: 70 | D54: 41683255 | E54: -1861594 | F54: =-SUMIFS('Input-Events'!F$4:F$106, 'Input-Events'!E$4:E$106, $C54) -> 0 | G54: =_xlfn.TEXTJOIN(", ", TRUE, IF('Input-Events'!E$4:E$106=$C54, 'Input-Events'!D$4:D$106, "")) ->  | H54: 39821661 | I54: 796433 | J54: 40618094
B55: 2070 | C55: 71 | D55: 40618094 | E55: -1954674 | F55: =-SUMIFS('Input-Events'!F$4:F$106, 'Input-Events'!E$4:E$106, $C55) -> 0 | G55: =_xlfn.TEXTJOIN(", ", TRUE, IF('Input-Events'!E$4:E$106=$C55, 'Input-Events'!D$4:D$106, "")) ->  | H55: 38663420 | I55: 773268 | J55: 39436688
B56: 2071 | C56: 72 | D56: 39436688 | E56: -2052407 | F56: =-SUMIFS('Input-Events'!F$4:F$106, 'Input-Events'!E$4:E$106, $C56) -> 0 | G56: =_xlfn.TEXTJOIN(", ", TRUE, IF('Input-Events'!E$4:E$106=$C56, 'Input-Events'!D$4:D$106, "")) ->  | H56: 37384281 | I56: 747686 | J56: 38131967
B57: 2072 | C57: 73 | D57: 38131967 | E57: -2155028 | F57: =-SUMIFS('Input-Events'!F$4:F$106, 'Input-Events'!E$4:E$106, $C57) -> 0 | G57: =_xlfn.TEXTJOIN(", ", TRUE, IF('Input-Events'!E$4:E$106=$C57, 'Input-Events'!D$4:D$106, "")) ->  | H57: 35976939 | I57: 719539 | J57: 36696478
B58: 2073 | C58: 74 | D58: 36696478 | E58: -2262779 | F58: =-SUMIFS('Input-Events'!F$4:F$106, 'Input-Events'!E$4:E$106, $C58) -> 0 | G58: =_xlfn.TEXTJOIN(", ", TRUE, IF('Input-Events'!E$4:E$106=$C58, 'Input-Events'!D$4:D$106, "")) ->  | H58: 34433699 | I58: 688674 | J58: 35122373
B59: 2074 | C59: 75 | D59: 35122373 | E59: -2375918 | F59: =-SUMIFS('Input-Events'!F$4:F$106, 'Input-Events'!E$4:E$106, $C59) -> 0 | G59: =_xlfn.TEXTJOIN(", ", TRUE, IF('Input-Events'!E$4:E$106=$C59, 'Input-Events'!D$4:D$106, "")) ->  | H59: 32746455 | I59: 654929 | J59: 33401384
B60: 2075 | C60: 76 | D60: 33401384 | E60: -2494714 | F60: =-SUMIFS('Input-Events'!F$4:F$106, 'Input-Events'!E$4:E$106, $C60) -> 0 | G60: =_xlfn.TEXTJOIN(", ", TRUE, IF('Input-Events'!E$4:E$106=$C60, 'Input-Events'!D$4:D$106, "")) ->  | H60: 30906670 | I60: 618133 | J60: 31524803
B61: 2076 | C61: 77 | D61: 31524803 | E61: -2619450 | F61: =-SUMIFS('Input-Events'!F$4:F$106, 'Input-Events'!E$4:E$106, $C61) -> 0 | G61: =_xlfn.TEXTJOIN(", ", TRUE, IF('Input-Events'!E$4:E$106=$C61, 'Input-Events'!D$4:D$106, "")) ->  | H61: 28905353 | I61: 578107 | J61: 29483460
B62: 2077 | C62: 78 | D62: 29483460 | E62: -2750422 | F62: =-SUMIFS('Input-Events'!F$4:F$106, 'Input-Events'!E$4:E$106, $C62) -> 0 | G62: =_xlfn.TEXTJOIN(", ", TRUE, IF('Input-Events'!E$4:E$106=$C62, 'Input-Events'!D$4:D$106, "")) ->  | H62: 26733038 | I62: 534661 | J62: 27267699
B63: 2078 | C63: 79 | D63: 27267699 | E63: -2887943 | F63: =-SUMIFS('Input-Events'!F$4:F$106, 'Input-Events'!E$4:E$106, $C63) -> 0 | G63: =_xlfn.TEXTJOIN(", ", TRUE, IF('Input-Events'!E$4:E$106=$C63, 'Input-Events'!D$4:D$106, "")) ->  | H63: 24379756 | I63: 487595 | J63: 24867351
B64: 2079 | C64: 80 | D64: 24867351 | E64: -3032340 | F64: =-SUMIFS('Input-Events'!F$4:F$106, 'Input-Events'!E$4:E$106, $C64) -> 10000000 | G64: =_xlfn.TEXTJOIN(", ", TRUE, IF('Input-Events'!E$4:E$106=$C64, 'Input-Events'!D$4:D$106, "")) -> Term Insurance, Life Expectancy | H64: 31835011 | I64: 636700 | J64: 32471711
B65: 2080 | C65: 81 | D65: 32471711 | E65: -3183957 | F65: =-SUMIFS('Input-Events'!F$4:F$106, 'Input-Events'!E$4:E$106, $C65) -> 0 | G65: =_xlfn.TEXTJOIN(", ", TRUE, IF('Input-Events'!E$4:E$106=$C65, 'Input-Events'!D$4:D$106, "")) ->  | H65: 29287754 | I65: 585755 | J65: 29873509
B66: 2081 | C66: 82 | D66: 29873509 | E66: -3343155 | F66: =-SUMIFS('Input-Events'!F$4:F$106, 'Input-Events'!E$4:E$106, $C66) -> 0 | G66: =_xlfn.TEXTJOIN(", ", TRUE, IF('Input-Events'!E$4:E$106=$C66, 'Input-Events'!D$4:D$106, "")) ->  | H66: 26530354 | I66: 530607 | J66: 27060961
B67: 2082 | C67: 83 | D67: 27060961 | E67: -3510313 | F67: =-SUMIFS('Input-Events'!F$4:F$106, 'Input-Events'!E$4:E$106, $C67) -> 0 | G67: =_xlfn.TEXTJOIN(", ", TRUE, IF('Input-Events'!E$4:E$106=$C67, 'Input-Events'!D$4:D$106, "")) ->  | H67: 23550648 | I67: 471013 | J67: 24021661
B68: 2083 | C68: 84 | D68: 24021661 | E68: -3685829 | F68: =-SUMIFS('Input-Events'!F$4:F$106, 'Input-Events'!E$4:E$106, $C68) -> 0 | G68: =_xlfn.TEXTJOIN(", ", TRUE, IF('Input-Events'!E$4:E$106=$C68, 'Input-Events'!D$4:D$106, "")) ->  | H68: 20335832 | I68: 406717 | J68: 20742549
B69: 2084 | C69: 85 | D69: 20742549 | E69: -3870120 | F69: =-SUMIFS('Input-Events'!F$4:F$106, 'Input-Events'!E$4:E$106, $C69) -> 0 | G69: =_xlfn.TEXTJOIN(", ", TRUE, IF('Input-Events'!E$4:E$106=$C69, 'Input-Events'!D$4:D$106, "")) ->  | H69: 16872429 | I69: 337449 | J69: 17209878
B70: 2085 | C70: 86 | D70: 17209878 | E70: -4063626 | F70: =-SUMIFS('Input-Events'!F$4:F$106, 'Input-Events'!E$4:E$106, $C70) -> 0 | G70: =_xlfn.TEXTJOIN(", ", TRUE, IF('Input-Events'!E$4:E$106=$C70, 'Input-Events'!D$4:D$106, "")) ->  | H70: 13146252 | I70: 262925 | J70: 13409177
B71: 2086 | C71: 87 | D71: 13409177 | E71: -4266807 | F71: =-SUMIFS('Input-Events'!F$4:F$106, 'Input-Events'!E$4:E$106, $C71) -> 0 | G71: =_xlfn.TEXTJOIN(", ", TRUE, IF('Input-Events'!E$4:E$106=$C71, 'Input-Events'!D$4:D$106, "")) ->  | H71: 9142370 | I71: 182847 | J71: 9325217
B72: 2087 | C72: 88 | D72: 9325217 | E72: -4480148 | F72: =-SUMIFS('Input-Events'!F$4:F$106, 'Input-Events'!E$4:E$106, $C72) -> 0 | G72: =_xlfn.TEXTJOIN(", ", TRUE, IF('Input-Events'!E$4:E$106=$C72, 'Input-Events'!D$4:D$106, "")) ->  | H72: 4845069 | I72: 96901 | J72: 4941970
B73: 2088 | C73: 89 | D73: 4941970 | E73: -4704155 | F73: =-SUMIFS('Input-Events'!F$4:F$106, 'Input-Events'!E$4:E$106, $C73) -> 0 | G73: =_xlfn.TEXTJOIN(", ", TRUE, IF('Input-Events'!E$4:E$106=$C73, 'Input-Events'!D$4:D$106, "")) ->  | H73: 237815 | I73: =ROUND(IF($C73>=userRetirementAge, IF($H73>0, $H73*annualEffectivePostRetirementROI, 0), IF($H73>0, $H73*annualEffectiveROI, 0)), 0) -> 4756 | J73: =ROUND(H73+I73, 0) -> 242571
B74: =B73+1 -> 2089 | C74: =C73+1 -> 90 | D74: =ROUND(J73, 0) -> 242571 | E74: =ROUND(IF($C74>userRetirementAge, IF($D74>0,-FV(annualChangeInSWP, $C74-userRetirementAge-1, 0, -annualAmountSWP, 1), 0), E73+E73*(annualIncreaseInSavings)), 0) -> -4939363 | F74: =-SUMIFS('Input-Events'!F$4:F$106, 'Input-Events'!E$4:E$106, $C74) -> 0 | G74: =_xlfn.TEXTJOIN(", ", TRUE, IF('Input-Events'!E$4:E$106=$C74, 'Input-Events'!D$4:D$106, "")) ->  | H74: =$D74+$E74+$F74 -> -4696792 | I74: 0 | J74: -4696792
B75: 2090 | C75: 91 | D75: -4696792 | E75: 0 | F75: =-SUMIFS('Input-Events'!F$4:F$106, 'Input-Events'!E$4:E$106, $C75) -> 0 | G75: =_xlfn.TEXTJOIN(", ", TRUE, IF('Input-Events'!E$4:E$106=$C75, 'Input-Events'!D$4:D$106, "")) ->  | H75: -4696792 | I75: 0 | J75: -4696792
B76: 2091 | C76: 92 | D76: -4696792 | E76: 0 | F76: =-SUMIFS('Input-Events'!F$4:F$106, 'Input-Events'!E$4:E$106, $C76) -> 0 | G76: =_xlfn.TEXTJOIN(", ", TRUE, IF('Input-Events'!E$4:E$106=$C76, 'Input-Events'!D$4:D$106, "")) ->  | H76: -4696792 | I76: 0 | J76: -4696792
B77: 2092 | C77: 93 | D77: -4696792 | E77: 0 | F77: =-SUMIFS('Input-Events'!F$4:F$106, 'Input-Events'!E$4:E$106, $C77) -> 0 | G77: =_xlfn.TEXTJOIN(", ", TRUE, IF('Input-Events'!E$4:E$106=$C77, 'Input-Events'!D$4:D$106, "")) ->  | H77: -4696792 | I77: 0 | J77: -4696792
B78: 2093 | C78: 94 | D78: -4696792 | E78: 0 | F78: =-SUMIFS('Input-Events'!F$4:F$106, 'Input-Events'!E$4:E$106, $C78) -> 0 | G78: =_xlfn.TEXTJOIN(", ", TRUE, IF('Input-Events'!E$4:E$106=$C78, 'Input-Events'!D$4:D$106, "")) ->  | H78: -4696792 | I78: 0 | J78: -4696792
B79: 2094 | C79: 95 | D79: -4696792 | E79: 0 | F79: =-SUMIFS('Input-Events'!F$4:F$106, 'Input-Events'!E$4:E$106, $C79) -> 0 | G79: =_xlfn.TEXTJOIN(", ", TRUE, IF('Input-Events'!E$4:E$106=$C79, 'Input-Events'!D$4:D$106, "")) ->  | H79: -4696792 | I79: 0 | J79: -4696792
B80: 2095 | C80: 96 | D80: -4696792 | E80: 0 | F80: =-SUMIFS('Input-Events'!F$4:F$106, 'Input-Events'!E$4:E$106, $C80) -> 0 | G80: =_xlfn.TEXTJOIN(", ", TRUE, IF('Input-Events'!E$4:E$106=$C80, 'Input-Events'!D$4:D$106, "")) ->  | H80: -4696792 | I80: 0 | J80: -4696792
B81: 2096 | C81: 97 | D81: -4696792 | E81: 0 | F81: =-SUMIFS('Input-Events'!F$4:F$106, 'Input-Events'!E$4:E$106, $C81) -> 0 | G81: =_xlfn.TEXTJOIN(", ", TRUE, IF('Input-Events'!E$4:E$106=$C81, 'Input-Events'!D$4:D$106, "")) ->  | H81: -4696792 | I81: 0 | J81: -4696792
B82: 2097 | C82: 98 | D82: -4696792 | E82: 0 | F82: =-SUMIFS('Input-Events'!F$4:F$106, 'Input-Events'!E$4:E$106, $C82) -> 0 | G82: =_xlfn.TEXTJOIN(", ", TRUE, IF('Input-Events'!E$4:E$106=$C82, 'Input-Events'!D$4:D$106, "")) ->  | H82: -4696792 | I82: 0 | J82: -4696792
B83: 2098 | C83: 99 | D83: -4696792 | E83: 0 | F83: =-SUMIFS('Input-Events'!F$4:F$106, 'Input-Events'!E$4:E$106, $C83) -> 0 | G83: =_xlfn.TEXTJOIN(", ", TRUE, IF('Input-Events'!E$4:E$106=$C83, 'Input-Events'!D$4:D$106, "")) ->  | H83: -4696792 | I83: 0 | J83: -4696792
B84: 2099 | C84: 100 | D84: -4696792 | E84: 0 | F84: =-SUMIFS('Input-Events'!F$4:F$106, 'Input-Events'!E$4:E$106, $C84) -> 0 | G84: =_xlfn.TEXTJOIN(", ", TRUE, IF('Input-Events'!E$4:E$106=$C84, 'Input-Events'!D$4:D$106, "")) ->  | H84: -4696792 | I84: 0 | J84: -4696792
B85: 2100 | C85: 101 | D85: -4696792 | E85: 0 | F85: =-SUMIFS('Input-Events'!F$4:F$106, 'Input-Events'!E$4:E$106, $C85) -> 0 | G85: =_xlfn.TEXTJOIN(", ", TRUE, IF('Input-Events'!E$4:E$106=$C85, 'Input-Events'!D$4:D$106, "")) ->  | H85: -4696792 | I85: 0 | J85: -4696792
B86: 2101 | C86: 102 | D86: -4696792 | E86: 0 | F86: =-SUMIFS('Input-Events'!F$4:F$106, 'Input-Events'!E$4:E$106, $C86) -> 0 | G86: =_xlfn.TEXTJOIN(", ", TRUE, IF('Input-Events'!E$4:E$106=$C86, 'Input-Events'!D$4:D$106, "")) ->  | H86: -4696792 | I86: 0 | J86: -4696792
B87: 2102 | C87: 103 | D87: -4696792 | E87: 0 | F87: =-SUMIFS('Input-Events'!F$4:F$106, 'Input-Events'!E$4:E$106, $C87) -> 0 | G87: =_xlfn.TEXTJOIN(", ", TRUE, IF('Input-Events'!E$4:E$106=$C87, 'Input-Events'!D$4:D$106, "")) ->  | H87: -4696792 | I87: 0 | J87: -4696792
B88: 2103 | C88: 104 | D88: -4696792 | E88: 0 | F88: =-SUMIFS('Input-Events'!F$4:F$106, 'Input-Events'!E$4:E$106, $C88) -> 0 | G88: =_xlfn.TEXTJOIN(", ", TRUE, IF('Input-Events'!E$4:E$106=$C88, 'Input-Events'!D$4:D$106, "")) ->  | H88: -4696792 | I88: 0 | J88: -4696792
B89: 2104 | C89: 105 | D89: -4696792 | E89: 0 | F89: =-SUMIFS('Input-Events'!F$4:F$106, 'Input-Events'!E$4:E$106, $C89) -> 0 | G89: =_xlfn.TEXTJOIN(", ", TRUE, IF('Input-Events'!E$4:E$106=$C89, 'Input-Events'!D$4:D$106, "")) ->  | H89: -4696792 | I89: 0 | J89: -4696792
B90: 2105 | C90: 106 | D90: -4696792 | E90: 0 | F90: =-SUMIFS('Input-Events'!F$4:F$106, 'Input-Events'!E$4:E$106, $C90) -> 0 | G90: =_xlfn.TEXTJOIN(", ", TRUE, IF('Input-Events'!E$4:E$106=$C90, 'Input-Events'!D$4:D$106, "")) ->  | H90: -4696792 | I90: 0 | J90: -4696792
B91: 2106 | C91: 107 | D91: -4696792 | E91: 0 | F91: =-SUMIFS('Input-Events'!F$4:F$106, 'Input-Events'!E$4:E$106, $C91) -> 0 | G91: =_xlfn.TEXTJOIN(", ", TRUE, IF('Input-Events'!E$4:E$106=$C91, 'Input-Events'!D$4:D$106, "")) ->  | H91: -4696792 | I91: 0 | J91: -4696792
B92: 2107 | C92: 108 | D92: -4696792 | E92: 0 | F92: =-SUMIFS('Input-Events'!F$4:F$106, 'Input-Events'!E$4:E$106, $C92) -> 0 | G92: =_xlfn.TEXTJOIN(", ", TRUE, IF('Input-Events'!E$4:E$106=$C92, 'Input-Events'!D$4:D$106, "")) ->  | H92: -4696792 | I92: 0 | J92: -4696792
B93: 2108 | C93: 109 | D93: -4696792 | E93: 0 | F93: =-SUMIFS('Input-Events'!F$4:F$106, 'Input-Events'!E$4:E$106, $C93) -> 0 | G93: =_xlfn.TEXTJOIN(", ", TRUE, IF('Input-Events'!E$4:E$106=$C93, 'Input-Events'!D$4:D$106, "")) ->  | H93: -4696792 | I93: 0 | J93: -4696792
B94: 2109 | C94: 110 | D94: -4696792 | E94: 0 | F94: =-SUMIFS('Input-Events'!F$4:F$106, 'Input-Events'!E$4:E$106, $C94) -> 0 | G94: =_xlfn.TEXTJOIN(", ", TRUE, IF('Input-Events'!E$4:E$106=$C94, 'Input-Events'!D$4:D$106, "")) ->  | H94: -4696792 | I94: 0 | J94: -4696792
B95: 2110 | C95: 111 | D95: -4696792 | E95: 0 | F95: =-SUMIFS('Input-Events'!F$4:F$106, 'Input-Events'!E$4:E$106, $C95) -> 0 | G95: =_xlfn.TEXTJOIN(", ", TRUE, IF('Input-Events'!E$4:E$106=$C95, 'Input-Events'!D$4:D$106, "")) ->  | H95: -4696792 | I95: 0 | J95: -4696792
B96: 2111 | C96: 112 | D96: -4696792 | E96: 0 | F96: =-SUMIFS('Input-Events'!F$4:F$106, 'Input-Events'!E$4:E$106, $C96) -> 0 | G96: =_xlfn.TEXTJOIN(", ", TRUE, IF('Input-Events'!E$4:E$106=$C96, 'Input-Events'!D$4:D$106, "")) ->  | H96: -4696792 | I96: 0 | J96: -4696792
B97: 2112 | C97: 113 | D97: -4696792 | E97: 0 | F97: =-SUMIFS('Input-Events'!F$4:F$106, 'Input-Events'!E$4:E$106, $C97) -> 0 | G97: =_xlfn.TEXTJOIN(", ", TRUE, IF('Input-Events'!E$4:E$106=$C97, 'Input-Events'!D$4:D$106, "")) ->  | H97: -4696792 | I97: 0 | J97: -4696792
B98: 2113 | C98: 114 | D98: -4696792 | E98: 0 | F98: =-SUMIFS('Input-Events'!F$4:F$106, 'Input-Events'!E$4:E$106, $C98) -> 0 | G98: =_xlfn.TEXTJOIN(", ", TRUE, IF('Input-Events'!E$4:E$106=$C98, 'Input-Events'!D$4:D$106, "")) ->  | H98: -4696792 | I98: 0 | J98: -4696792
B99: 2114 | C99: 115 | D99: -4696792 | E99: 0 | F99: =-SUMIFS('Input-Events'!F$4:F$106, 'Input-Events'!E$4:E$106, $C99) -> 0 | G99: =_xlfn.TEXTJOIN(", ", TRUE, IF('Input-Events'!E$4:E$106=$C99, 'Input-Events'!D$4:D$106, "")) ->  | H99: -4696792 | I99: 0 | J99: -4696792
B100: 2115 | C100: 116 | D100: -4696792 | E100: 0 | F100: =-SUMIFS('Input-Events'!F$4:F$106, 'Input-Events'!E$4:E$106, $C100) -> 0 | G100: =_xlfn.TEXTJOIN(", ", TRUE, IF('Input-Events'!E$4:E$106=$C100, 'Input-Events'!D$4:D$106, "")) ->  | H100: -4696792 | I100: 0 | J100: -4696792
B101: 2116 | C101: 117 | D101: -4696792 | E101: 0 | F101: =-SUMIFS('Input-Events'!F$4:F$106, 'Input-Events'!E$4:E$106, $C101) -> 0 | G101: =_xlfn.TEXTJOIN(", ", TRUE, IF('Input-Events'!E$4:E$106=$C101, 'Input-Events'!D$4:D$106, "")) ->  | H101: -4696792 | I101: 0 | J101: -4696792
B102: 2117 | C102: 118 | D102: -4696792 | E102: 0 | F102: =-SUMIFS('Input-Events'!F$4:F$106, 'Input-Events'!E$4:E$106, $C102) -> 0 | G102: =_xlfn.TEXTJOIN(", ", TRUE, IF('Input-Events'!E$4:E$106=$C102, 'Input-Events'!D$4:D$106, "")) ->  | H102: -4696792 | I102: 0 | J102: -4696792
B103: 2118 | C103: 119 | D103: -4696792 | E103: 0 | F103: =-SUMIFS('Input-Events'!F$4:F$106, 'Input-Events'!E$4:E$106, $C103) -> 0 | G103: =_xlfn.TEXTJOIN(", ", TRUE, IF('Input-Events'!E$4:E$106=$C103, 'Input-Events'!D$4:D$106, "")) ->  | H103: -4696792 | I103: 0 | J103: -4696792
B104: 2119 | C104: 120 | D104: -4696792 | E104: 0 | F104: =-SUMIFS('Input-Events'!F$4:F$106, 'Input-Events'!E$4:E$106, $C104) -> 0 | G104: =_xlfn.TEXTJOIN(", ", TRUE, IF('Input-Events'!E$4:E$106=$C104, 'Input-Events'!D$4:D$106, "")) ->  | H104: -4696792 | I104: 0 | J104: -4696792
B105: 2120 | C105: 121 | D105: -4696792 | E105: 0 | F105: =-SUMIFS('Input-Events'!F$4:F$106, 'Input-Events'!E$4:E$106, $C105) -> 0 | G105: =_xlfn.TEXTJOIN(", ", TRUE, IF('Input-Events'!E$4:E$106=$C105, 'Input-Events'!D$4:D$106, "")) ->  | H105: -4696792 | I105: 0 | J105: =ROUND(H105+I105, 0) -> -4696792
B106: 2121 | C106: 122 | D106: -4696792 | E106: 0 | F106: =-SUMIFS('Input-Events'!F$4:F$106, 'Input-Events'!E$4:E$106, $C106) -> 0 | G106: =_xlfn.TEXTJOIN(", ", TRUE, IF('Input-Events'!E$4:E$106=$C106, 'Input-Events'!D$4:D$106, "")) ->  | H106: -4696792 | I106: 0 | J106: -4696792
B107: 2122 | C107: 123 | D107: -4696792 | E107: 0 | F107: =-SUMIFS('Input-Events'!F$4:F$106, 'Input-Events'!E$4:E$106, $C107) -> 0 | G107: =_xlfn.TEXTJOIN(", ", TRUE, IF('Input-Events'!E$4:E$106=$C107, 'Input-Events'!D$4:D$106, "")) ->  | H107: -4696792 | I107: 0 | J107: -4696792
B108: 2123 | C108: 124 | D108: -4696792 | E108: 0 | F108: =-SUMIFS('Input-Events'!F$4:F$106, 'Input-Events'!E$4:E$106, $C108) -> 0 | G108: =_xlfn.TEXTJOIN(", ", TRUE, IF('Input-Events'!E$4:E$106=$C108, 'Input-Events'!D$4:D$106, "")) ->  | H108: -4696792 | I108: 0 | J108: -4696792
B109: 2124 | C109: 125 | D109: -4696792 | E109: 0 | F109: =-SUMIFS('Input-Events'!F$4:F$106, 'Input-Events'!E$4:E$106, $C109) -> 0 | G109: =_xlfn.TEXTJOIN(", ", TRUE, IF('Input-Events'!E$4:E$106=$C109, 'Input-Events'!D$4:D$106, "")) ->  | H109: -4696792 | I109: 0 | J109: -4696792

Sheet Input-Basic
B1: User Fields (Editable) | I1: *Edit only the fields with Blue Background
B2: Formula Fields (Do not Edit)
B3: Title or Description
B7: User Inputs | E7: Computed Values
B9: Name | C9: Ganesh | E9: Age | F9: =DATEDIF(C10, TODAY(), "y") -> 24
B10: DOB | C10: 2000-01-01 | E10: Monthly Expenses | F10: =userMonthlyExpenses -> 20000
B11: Monthly Income | C11: 50000
B12: Current Savings | C12: 100000 | E12: Annual Savings/Investments | F12: =ROUND(12*(userIncome-userMonthlyExpenses),0) -> 360000
B13: Current Liabilities | C13: 50000 | E13: Effective ROI | F13: =$C$16-SUM($C$17:$C$19) -> 0.04
E14: Effective ROI after Retirement | F14: =$C$24-SUM($C$25:$C$27) -> 0.02
B15: PRE RETIREMENT
B16: Annual ROI (%) | C16: 0.15
B17: Annual Inflation (%) | C17: 0.07
B18: Annual Life Style Inflation (%) | C18: 0.03
B19: Others (%) | C19: 0.01
B21: Annual Increase In Savings (%) | C21: 0.05
B23: POST RETIREMENT
B24: Post Retirement ROI (%) | C24: 0.1
B25: Post Retirement Annual Inflation (%) | C25: 0.07
B26: Post Retirement Life Style Inflation (%) | C26: 0.01
B27: Others (%) | C27: 0
B29: Post Retirement Annual Withdrawal (SWP) | C29: 1200000
B30: Annual Change In SWP (%) | C30: 0.05
B32: MAIN EVENTS
B33: Retirement Age | C33: 60
B34: Life Expectancy Age | C34: 80

Sheet Input-MonthlyExpenses
I1: =CONCATENATE("*Make sure total expense doesn't exceed monthly income of ", userMonthlyIncome ) -> *Make sure total expense doesn't exceed monthly income of 50000 | L1: Conversion Tool
A3: Monthly Expenses Total | B3: =SUM(E4:E45) -> 20000 | D3: Description | E3: Amount | L3: Yearly | M3: 12000 | N3: =ROUND(M3/12, 0) -> 1000
D4: Rent | E4: 10000 | L4: Half-Yearly | M4: 6000 | N4: =ROUND(M4/6, 0) -> 1000
D5: EMI | E5: 3000 | L5: Quarterly | M5: 3000 | N5: =ROUND(M5/3, 0) -> 1000
D6: Credit Cards | E6: 3000 | L6: Bi-Monthly | M6: 2000 | N6: =ROUND(M6/2, 0) -> 1000
D7: Groceries | E7: 2000 | L7: Weekly | M7: 250 | N7: =ROUND(M7*4, 0) -> 1000
D8: Utilities | E8: 1000 | L8: Daily | M8: 100 | N8: =ROUND(M8*30, 0) -> 3000
D9: Misc | E9: 1000

Sheet Input-Events
I1: *If any income is expected on certain age, kindly provide negative value
A3: Total Expense Events | B3: =SUMIF($F$4:$F$106, ">=0") -> 7050000 | D3: Important Events | E3: Age | F3: Amount
A4: Total Income Events | B4: =-SUMIF($F$4:$F$106, "<0") -> 11300000 | D4: Education
D5: Mobile | E5: 26 | F5: 50000
D6: Bike
D7: Car | E7: 30 | F7: 1000000
D8: Domestic Trip
D9: International Trip | E9: 60 | F9: 500000
D10: Marriage | E10: 28 | F10: 500000
D11: Home | E11: 40 | F11: 5000000
D12: Children Education
D13: Children Marriage
D14: Gift
D15: Event #1 | F15: 0
D16: Event #2
D17: Event #3
D18: Event #4
D19: Event #5
D101: PPF Maturity | E101: 35 | F101: -200000
D102: Insurance Maturity | E102: 35 | F102: -100000
D103: Retirement Corpus | E103: =userRetirementAge -> 60 | F103: -1000000
D104: Term Insurance | E104: =userLifeExpectancyAge -> 80 | F104: -10000000
D105: Retirement | E105: =userRetirementAge -> 60
D106: Life Expectancy | E106: =userLifeExpectancyAge -> 80

Sheet TestCases
A1: *Copy and paste only the values to test
A5: User Inputs | D5: User Inputs
A7: Name | B7: Ganesh | D7: Name | E7: Ganesh
A8: DOB | B8: 2000-01-01 | D8: DOB | E8: 1970-01-01
A9: Monthly Income | B9: 50000 | D9: Monthly Income | E9: 150000
A10: Current Savings | B10: 100000 | D10: Current Savings | E10: 1000000
A11: Current Liabilities | B11: 50000 | D11: Current Liabilities | E11: 0
A13: PRE RETIREMENT | D13: PRE RETIREMENT
A14: Annual ROI (%) | B14: 0.15 | D14: Annual ROI (%) | E14: 0.12
A15: Annual Inflation (%) | B15: 0.07 | D15: Annual Inflation (%) | E15: 0.07
A16: Annual Life Style Inflation (%) | B16: 0.03 | D16: Annual Life Style Inflation (%) | E16: 0.03
A17: Others (%) | B17: 0.01 | D17: Others (%) | E17: 0.01
A19: Annual Increase In Savings (%) | B19: 0.05 | D19: Annual Increase In Savings (%) | E19: 0.05
A21: POST RETIREMENT | D21: POST RETIREMENT
A22: Post Retirement ROI (%) | B22: 0.1 | D22: Post Retirement ROI (%) | E22: 0.1
A23: Post Retirement Annual Inflation (%) | B23: 0.07 | D23: Post Retirement Annual Inflation (%) | E23: 0.07
A24: Post Retirement Life Style Inflation (%) | B24: 0.01 | D24: Post Retirement Life Style Inflation (%) | E24: 0.01
A25: Others (%) | B25: 0.01 | D25: Others (%) | E25: 0
A27: Post Retirement Annual Withdrawal (SWP) | B27: 1200000 | D27: Post Retirement Annual Withdrawal (SWP) | E27: 1200000
A28: Annual Change In SWP (%) | B28: 0.05 | D28: Annual Change In SWP (%) | E28: 0.05
A30: MAIN EVENTS | D30: MAIN EVENTS
A31: Retirement Age | B31: 60 | D31: Retirement Age | E31: 60
A32: Life Expectancy Age | B32: 80 | D32: Life Expectancy Age | E32: 80
